[Event "SixDays Budapest March GM-B 2023"]
[Site "Budapest"]
[Date "2023.03.27"]
[Round "6.1"]
[White "Vantika Agrawal"]
[Black "Joshua, A P"]
[Result "1-0"]
[ECO "E04"]
[WhiteElo "2367"]
[BlackElo "2300"]
[Annotator "TA"]
[PlyCount "71"]
[EventDate "2023.03.24"]
[EventType "tourn"]
[EventCountry "HUN"]
[SourceTitle "playchess.com"]
[Source "ChessBase"]
[SourceQuality "1"]
[TimeControl "5400+30"]

{[%evp 18,71,10,2,0,3,38,36,54,60,47,19,38,17,33,38,43,39,97,83,110,100,108,109,289,282,366,380,369,380,374,379,377,274,264,265,263,262,316,219,437,412,382,351,309,299,522,518,761,745,812,787,793,757,1443,1353]} 1. d4 {[%emt 0:00:50]} d5 {[%emt 0:02:08][%cal Bd7d5,Bd5c4][%mdl 32]} 2. c4 {[%emt 0:00:24]} e6 {[%emt 0:00:15]} 3. Nf3 {[%emt 0:00:19]} Nf6 {[%emt 0:00:29]} 4. g3 {[%emt 0:00:23]} dxc4 {[%emt 0:00:23]} 5. Bg2 {[%emt 0:00:05]} c5 {[%emt 0:00:19]} 6. O-O {[%emt 0:00:15]} Nc6 {[%emt 0:00:41]} 7. Qa4 {[%emt 0:00:10]} Bd7 {[%emt 0:00:42]} 8. dxc5 {[%emt 0:00:11]} Bxc5 {[%emt 0:00:19] 8...Na5 is the hot move.} 9. Qxc4 {[%emt 0:00:08]} Be7 {[%emt 0:00:20]} 10. Nc3 {[%emt 0:00:35]} Rc8 {[%emt 0:00:35] E04: Open Catalan: 5 Nf3.} 11. e4 {[%emt 0:02:34] [#]} Ng4 $146 {[%emt 0:08:36]} ({Predecessor:} 11... Ne5 12. Qe2 Nxf3+ 13. Bxf3 e5 14. Bg5 O-O 15. Rfd1 Qe8 16. Bxf6 Bxf6 17. Rxd7 Qxd7 18. Bg4 {½-½ Gaboyan,S (2111)-Kursova,M (2279) ARM-ch HL (Women) 74th+ 2019 (1)}) 12. Qe2 {[%emt 0:07:00]} Nge5 {[%emt 0:07:23] White is slightly better.} 13. Nxe5 {[%emt 0:03:26]} Nxe5 {[%emt 0:00:08]} 14. Rd1 {[%emt 0:02:14]} (14. Bf4 $5 {[%cal Rf4e5]} Bf6 15. Rfd1 $14) 14... O-O {[%emt 0:11:59]} 15. Bf4 {[%emt 0:09:48][%cal Bc1f4,Bf4e3,Be3f2][%mdl 32]} Bf6 {[%emt 0:07:57]} 16. Rac1 {[%emt 0:03:16]} a6 {[%emt 0:17:15]} 17. Be3 {[%emt 0:16:31]} (17. Bd2 $5 {[%cal Rf2f4]}) 17... b5 {[%emt 0:07:58]} (17... Nc4 $14) 18. f4 $36 {[%emt 0:14:53][%mdl 2048] Keeping Black busy. White is more active.} Nc4 {[%emt 0:00:35] [#]} 19. Bf2 $1 {[%emt 0:02:01]} Be7 {[%emt 0:22:45]} 20. e5 {[%emt 0:02:42] Hoping for Bb7.} Rc7 {[%emt 0:02:35] Against Bb7. Loses the game.} (20... Na5 $16) 21. b3 $18 {[%emt 0:07:44]} Na3 {[%emt 0:01:26]} 22. Bb6 {[%emt 0:09:34] Threatens to win with Qf2.} Bc5+ {[%emt 0:01:01]} 23. Bxc5 {[%emt 0:01:24]} Rxc5 {[%emt 0:00:07]} 24. Qe3 {[%emt 0:01:45]} Rc7 {[%emt 0:03:21]} 25. Ne4 {[%emt 0:00:59]} b4 {[%emt 0:01:09]} 26. Qd4 {[%emt 0:01:28]} Rxc1 {[%emt 0:01:31]} 27. Rxc1 {[%emt 0:00:14][%cal Oc1d1,Bd1c1,Bc1c7,Bc7b7,Bb7b8,Bb8b7][%mdl 32] Strongly threatening Rd1!} Qe7 {[%emt 0:00:11]} 28. Nd6 {[%emt 0:04:52] Black must now prevent Qa7.} a5 $2 {[%emt 0:00:51]} (28... Nb5 29. Qxb4 Rb8) 29. Rc7 {[%emt 0:04:02]} Qd8 {[%emt 0:00:03]} 30. Qc5 {[%emt 0:01:17]} Nb5 {[%emt 0:00:37] [#] Black is weak on the light squares} 31. Rb7 {[%emt 0:02:45]} ({Less strong is} 31. Nxb5 Bxb5 32. Qd6 g5 $14) (31. Rxd7 Qxd7 32. Qxb5 (32. Nxb5 Rc8 $11) 32... Qxb5 33. Nxb5 Rc8 $16) 31... Nc3 {[%emt 0:00:50]} (31... Nxd6 {was worth a try.} 32. exd6 h5) 32. Qa7 {[%emt 0:00:27] White is clearly winning.} Be8 {[%emt 0:00:58]} 33. Rb8 {[%emt 0:00:43]} Qd7 {[%emt 0:00:06]} 34. Qxa5 {[%emt 0:00:41]} Ne2+ {[%emt 0:00:27]} 35. Kf2 {[%emt 0:00:30] Rb7 is the strong threat.} Nc1 {[%emt 0:00:26]} 36. Rb7 {[%emt 0:00:28] Weighted Error Value: White=0.13 (very precise) /Black=0.47} (36. Qxb4 $2 {perishes.} Nd3+ 37. Kf1 Nxb4 $19) 1-0

[Event "SixDays Budapest March GM-B 2023"]
[Site "Budapest"]
[Date "2023.03.27"]
[Round "6.2"]
[White "Tran, Thanh Tu"]
[Black "Royal, Shreyas"]
[Result "1-0"]
[ECO "D00"]
[WhiteElo "2402"]
[BlackElo "2452"]
[Annotator "TA"]
[PlyCount "63"]
[EventDate "2023.03.24"]
[EventType "tourn"]
[EventCountry "HUN"]
[SourceTitle "playchess.com"]
[Source "ChessBase"]
[SourceQuality "1"]
[TimeControl "5400+30"]

{[%evp 9,63,0,0,-2,5,0,0,0,-3,-15,41,25,34,39,39,22,41,25,34,21,22,23,28,22,29,26,72,71,429,400,376,137,259,266,262,262,765,133,1417,1468,1447,1411,1329,1256,1781,1403,1769,1403,1386,1177,29959,6436,29969,29968,5297,5277]} 1. d4 {[%emt 0:00:39]} d5 {[%emt 0:00:36]} 2. Nc3 {[%emt 0:00:34]} Nf6 {[%emt 0:00:07]} 3. Bf4 {[%emt 0:00:07]} c5 {[%emt 0:00:06]} 4. e4 {[%emt 0:00:36]} Nxe4 {[%emt 0:00:13]} 5. Nxe4 {[%emt 0:01:36]} dxe4 {[%emt 0:00:07]} 6. dxc5 {[%emt 0:01:50] D00: 1 d4 d5: Unusual lines.} Qxd1+ {[%emt 0:00:07]} 7. Rxd1 {[%emt 0:00:06] Strongly threatening Bxb8.} Nc6 {[%emt 0:00:06]} 8. f3 {[%emt 0:14:12] [#] The position is equal.} Bf5 $146 {[%emt 0:01:30]} ({Predecessor:} 8... e5 9. Be3 exf3 10. Nxf3 Be6 11. Bb5 f6 12. a4 Rc8 13. O-O a6 14. Bxc6+ Rxc6 {0-1 Canty,J (2225)-Rosen,E (2360) I'M Not A GM Speed Chess blitz 2022 (4.26)}) 9. c3 {[%emt 0:00:56]} g6 {[%emt 0:04:24] Black is weak on the dark squares} (9... e6 $11) 10. Bc4 {[%emt 0:01:49]} Bg7 {[%emt 0:04:41]} 11. fxe4 {[%emt 0:05:57]} Bxe4 {[%emt 0:00:08]} 12. Nf3 {[%emt 0:00:04]} O-O {[%emt 0:06:36]} 13. O-O {[%emt 0:03:47]} h6 {[%emt 0:12:06]} 14. Rfe1 {[%emt 0:12:18]} Bxf3 {[%emt 0:02:24]} 15. gxf3 {[%emt 0:00:06]} Rfd8 {[%emt 0:00:15] Dodges Rd7} 16. Bd5 {[%emt 0:05:12]} e6 {[%emt 0:02:55]} 17. Be4 {[%emt 0:07:54]} Rxd1 {[%emt 0:07:26]} (17... a5 $11 {might be stronger.}) 18. Rxd1 $16 {[%emt 0:00:13]} Rd8 $2 {[%emt 0:00:05][%mdl 8192] Dodges Rd7} (18... f5 $16) 19. Rxd8+ $18 {[%emt 0:03:45]} Nxd8 {[%emt 0:00:08][%mdl 4096] Endgame [#] KBB-KBN} 20. Bb8 $2 {[%emt 0:00:11]} (20. Bxb7 $1 $18 {is the precise move to win.} e5 21. c6 Nxc6 22. Be3) 20... Nc6 {[%emt 0:05:54] [#]} (20... Bf8 $16) 21. Bxc6 $1 {[%emt 0:01:27]} bxc6 {[%emt 0:00:06]} 22. Bxa7 {[%emt 0:00:08] KB-KB} Be5 $2 {[%emt 0:00:01]} (22... Kf8 23. Bb8 Ke8) 23. b4 $2 {[%emt 0:10:18]} (23. a4 $18 {is more deadly.} Kf8 24. a5) 23... Kf8 $2 {[%emt 0:14:03][%mdl 8192] Loses the game.} (23... Bxc3 $16 24. b5 cxb5) 24. c4 {[%emt 0:00:12]} Ke7 {[%emt 0:00:17]} 25. Bb6 {[%emt 0:01:39]} Kd7 {[%emt 0:00:38]} 26. a4 {[%emt 0:00:47][%cal Ba2a4,Ba4a5,Ba5a6,Ba6a7][%mdl 32]} Bc7 {[%emt 0:02:11]} 27. a5 {[%emt 0:01:19]} Kc8 {[%emt 0:00:21]} 28. a6 {[%emt 0:00:16] Black must now prevent b5.} Be5 {[%emt 0:00:11]} 29. b5 {[%emt 0:00:48]} Bd4+ {[%emt 0:00:20]} 30. Kf1 {[%emt 0:00:09] White wants to mate with a7.} cxb5 {[%emt 0:00:05]} 31. a7 {[%emt 0:00:38]} Kb7 {[%emt 0:00:03]} 32. c6+ {[%emt 0:00:04][%mdl 64] Discovered Attack, Promotion.   Weighted Error Value: White=0.48/Black=1.11} 1-0

[Event "SixDays Budapest March GM-B 2023"]
[Site "Budapest"]
[Date "2023.03.27"]
[Round "6.3"]
[White "Priasmoro, Novendra"]
[Black "Pribelszky, Bence"]
[Result "1-0"]
[ECO "B47"]
[WhiteElo "2521"]
[BlackElo "2380"]
[Annotator "TA"]
[PlyCount "63"]
[EventDate "2023.03.24"]
[EventType "tourn"]
[EventCountry "HUN"]
[SourceTitle "playchess.com"]
[Source "ChessBase"]
[SourceQuality "1"]
[TimeControl "5400+30"]

{[%evp 13,63,25,45,45,47,49,43,30,27,31,39,19,31,15,15,18,37,16,32,0,0,0,0,7,10,7,0,0,28,22,53,51,50,12,57,37,30,0,0,36,83,81,130,108,345,345,345,345,345,343,820,798]} 1. e4 {[%emt 0:00:32]} c5 {[%emt 0:01:12]} 2. Nf3 {[%emt 0:00:08]} e6 {[%emt 0:00:06]} 3. d4 {[%emt 0:00:15]} cxd4 {[%emt 0:00:04]} 4. Nxd4 {[%emt 0:00:08]} Nc6 {[%emt 0:00:05]} 5. Nc3 {[%emt 0:00:13]} Qc7 {[%emt 0:00:05]} 6. g3 {[%emt 0:00:50]} a6 {[%emt 0:00:10]} 7. Bg2 {[%emt 0:00:09]} d6 {[%emt 0:00:05]} 8. Nxc6 {[%emt 0:01:00] B47: Sicilian: Taimanov: 5 Nc3 Qc7 6 f4, 6 g3 and 6 Be2.} bxc6 {[%emt 0:00:06]} 9. O-O {[%emt 0:00:23]} Nf6 {[%emt 0:00:53]} 10. Re1 {[%emt 0:01:01] White is slightly better.} Bb7 {[%emt 0:01:22]} 11. Na4 {[%emt 0:01:27]} c5 {[%emt 0:04:09]} 12. c4 {[%emt 0:00:27]} Nd7 {[%emt 0:03:50]} 13. b3 {[%emt 0:03:31]} Be7 {[%emt 0:00:17]} 14. Bb2 {[%emt 0:00:54]} O-O {[%emt 0:03:06]} 15. Qd2 {[%emt 0:06:21]} Bc6 {[%emt 0:11:33]} 16. Nc3 {[%emt 0:02:38][%cal Oc3d5,Ba4c3,Bc3d1,Bd1b2][%mdl 32]} Bf6 {[%emt 0:00:05] [#]} 17. Nd1 $146 {[%emt 0:21:16]} ({Predecessor:} 17. Ne2 Bxb2 18. Qxb2 f5 19. Nf4 Rae8 20. exf5 Bxg2 21. Nxg2 Ne5 22. Re3 Rxf5 23. Nh4 {½-½ Sjugirov,S (2629)-Adhiban,B (2542) Wch U20 50th 2011 (13)}) 17... Bxb2 {[%emt 0:15:24]} 18. Nxb2 {[%emt 0:01:11] Threatening Red1.} Rfd8 {[%emt 0:00:06]} 19. Rad1 {[%emt 0:00:45]} Nf8 {[%emt 0:00:15]} 20. Re3 {[%emt 0:02:16]} Rd7 {[%emt 0:01:51]} 21. f4 {[%emt 0:01:46][%cal Bf2f4,Bf4f5][%mdl 32]} e5 {[%emt 0:14:25]} 22. f5 {[%emt 0:02:31] Inhibits Ne6.} a5 {[%emt 0:03:54]} 23. a4 {[%emt 0:10:01]} Ra6 {[%emt 0:05:19]} 24. g4 {[%emt 0:01:34][%cal Bg3g4,Bg4g5][%mdl 32]} Qd8 {[%emt 0:00:50]} 25. Rd3 {[%emt 0:02:16]} Qh4 {[%emt 0:06:27]} (25... h6 $5) 26. Qe2 {[%emt 0:24:08]} Ba8 {[%emt 0:01:21]} (26... Rb7 $14) 27. Rg3 $16 {[%emt 0:00:14] Strongly threatening g5.} h6 {[%emt 0:00:42] [#]} ({Black should play} 27... Qg5) 28. g5 $1 {[%emt 0:01:10] Black must now prevent Rg4.} Nh7 $2 {[%emt 0:04:49] Black cannot hold the game after this.} (28... h5 $16) 29. Rg4 $18 {[%emt 0:00:36]} Qh5 {[%emt 0:00:03] [#]} 30. Rd3 $1 {[%emt 0:00:47]} Nxg5 {[%emt 0:01:12]} (30... hxg5 $2 31. Rh3 $18) 31. h4 {[%emt 0:00:15]} Bxe4 $2 {[%emt 0:00:45]} (31... f6 32. hxg5 fxg5) 32. Bxe4 {[%emt 0:00:16] Weighted Error Value: White=0.07 (flawless) /Black=0.27 (precise)} 1-0

[Event "SixDays Budapest March GM-B 2023"]
[Site "Budapest"]
[Date "2023.03.27"]
[Round "6.4"]
[White "Swayams, Mishra"]
[Black "Varga, Csaba Zoltan"]
[Result "1/2-1/2"]
[ECO "B90"]
[WhiteElo "2489"]
[BlackElo "2278"]
[Annotator "TA"]
[PlyCount "61"]
[EventDate "2023.03.24"]
[EventType "tourn"]
[EventCountry "HUN"]
[SourceTitle "playchess.com"]
[Source "ChessBase"]
[SourceQuality "1"]
[TimeControl "5400+30"]

{[%evp 16,61,16,0,0,0,75,53,66,10,122,97,127,124,139,124,399,389,475,476,405,470,414,280,623,621,789,784,960,280,261,264,352,156,157,172,210,152,163,142,162,0,0,0,0,0,0,0]} 1. e4 {[%emt 0:14:17]} c5 {[%emt 0:00:35]} 2. Nf3 {[%emt 0:00:07]} d6 {[%emt 0:00:03]} 3. d4 {[%emt 0:00:06]} cxd4 {[%emt 0:00:04]} 4. Nxd4 {[%emt 0:00:03]} Nf6 {[%emt 0:00:06]} 5. Nc3 {[%emt 0:00:05]} a6 {[%emt 0:00:03]} 6. f3 {[%emt 0:01:47]} e6 {[%emt 0:00:06]} 7. Be3 {[%emt 0:01:04]} b5 {[%emt 0:00:06]} 8. Qd2 {[%emt 0:02:25]} Nbd7 {[%emt 0:00:04]} 9. g4 {[%emt 0:03:44]} b4 {[%emt 0:00:38] B80: Sicilian Scheveningen: 6 g3 and 6 Be3, including English Attack.} 10. Nce2 {[%emt 0:01:08] aiming for g5.} Ne5 {[%emt 0:01:14]} (10... h6 $11 {keeps the balance.}) 11. Ng3 {[%emt 0:00:51]} (11. Qxb4 d5 12. Qc3 (12. Qa4+ $2 Bd7 $19) 12... Rb8 $11) 11... h6 {[%emt 0:02:15] White is slightly better.} 12. O-O-O {[%emt 0:05:30]} (12. h4 $1 $14) 12... Bd7 {[%emt 0:01:21]} (12... d5 $11) 13. Kb1 {[%emt 0:04:33]} (13. Qxb4 $6 d5 14. Qe1 dxe4 $14) 13... Qc7 {[%emt 0:03:17] [#]} 14. h4 $146 {[%emt 0:00:25][%cal Bh2h4,Bh4g5][%mdl 32]} ({Predecessor:} 14. Be2 Be7 15. h4 Nc4 16. Bxc4 Qxc4 17. g5 Ng8 18. f4 a5 19. f5 O-O-O 20. fxe6 fxe6 {1-0 Noseda,F (1795)-Vilela,H (2062) Rio de Janeiro Regional Sudeste 2013 (2)}) 14... Rb8 {[%emt 0:02:24]} 15. Be2 {[%emt 0:02:43]} d5 $2 {[%emt 0:06:29][%mdl 8192] [#]} (15... Nc4 $16 {is a better defense.} 16. Bxc4 Qxc4) 16. g5 $1 $18 {[%emt 0:01:08]} (16. Bxa6 Ra8 17. Be2 dxe4 $11) 16... hxg5 {[%emt 0:01:08]} 17. hxg5 {[%emt 0:00:05][%mdl 64] Discovered Attack} Rxh1 {[%emt 0:00:05]} 18. Rxh1 {[%emt 0:00:40]} (18. Nxh1 Ng8 19. exd5 (19. Bxa6 Ra8 $14) 19... exd5 $18) 18... Ng8 {[%emt 0:02:41]} 19. exd5 {[%emt 0:00:27]} (19. Bxa6 Ra8 20. Be2 Qa5 $14) 19... exd5 $2 {[%emt 0:01:23]} (19... Ne7 20. Nxe6 (20. Bxa6 Nxd5 21. Be2 Nc3+ 22. Kc1 Ra8 $11) 20... Bxe6) 20. Bf4 {[%emt 0:04:51]} (20. Bxa6 Ra8 $18) 20... Ne7 {[%emt 0:00:30]} 21. Bd3 {[%emt 0:01:21][%cal Be2d3,Bd3f5,Bf5c8][%mdl 32]} (21. Bxa6 Ra8 22. Qe3 Nc4 $18) 21... Rc8 {[%emt 0:05:13]} 22. Nh5 $2 {[%emt 0:14:38]} (22. Qxb4 Nxd3 $11) (22. Bxa6 Ra8 23. Qe3 Nc4 $18) (22. Qe2) 22... Nc4 {[%emt 0:04:20]} 23. Qe2 {[%emt 0:06:20]} (23. Qxb4 a5 $18) 23... Qb6 {[%emt 0:02:00]} 24. Nf5 {[%emt 0:02:41]} (24. Be5 $18 Kd8 25. Nxg7 (25. Bxg7 $2 {too greedy.} Bxg7 26. Nb3 Bxb2 $19)) 24... Bxf5 $16 {[%emt 0:00:32]} 25. Bxf5 {[%emt 0:00:02]} Qd4 {[%emt 0:00:42][%csl Gc4][%cal Rd4b2]} 26. c3 {[%emt 0:03:43]} (26. Bxc8 $2 Qxb2#) 26... bxc3 {[%emt 0:00:29]} 27. Bxc8 {[%emt 0:10:54] A strong pair of Bishops.} cxb2 {[%emt 0:00:20][%cal Rc4a3] [#]} 28. a4 $2 {[%emt 0:00:42]} (28. Bxa6 $2 Na3#) ({White must play} 28. Bd6 $1 $18 Nd2+ 29. Kc2 b1=Q+ 30. Rxb1 Nxb1 31. Bg4 (31. Kxb1 Qb6+ 32. Kc2 Qc6+ 33. Kd1 Qxc8 $11) (31. Bxe7 Bxe7 32. Kxb1 Qg1+ 33. Kb2 Qd4+ 34. Kb1 Qg1+ 35. Kb2 Qd4+ 36. Kb1 $11)) 28... Na3+ {[%emt 0:01:35][%mdl 64] Discovered Attack. The position is equal.} 29. Ka2 {[%emt 0:00:01]} b1=B+ {[%emt 0:02:46]} 30. Rxb1 $1 {[%emt 0:00:28]} Nxb1 {[%emt 0:00:07]} 31. Kxb1 {[%emt 0:10:22] An interesting game.   Weighted Error Value: White=0.70/Black=0.49} 1/2-1/2

[Event "SixDays Budapest March GM-B 2023"]
[Site "Budapest"]
[Date "2023.03.27"]
[Round "6.5"]
[White "Ilincic, Zlatko"]
[Black "Moksh Amit Doshi"]
[Result "1/2-1/2"]
[ECO "E64"]
[WhiteElo "2302"]
[BlackElo "2388"]
[Annotator "TA"]
[PlyCount "52"]
[EventDate "2023.03.24"]
[EventType "tourn"]
[EventCountry "HUN"]
[SourceTitle "playchess.com"]
[Source "ChessBase"]
[SourceQuality "1"]
[TimeControl "5400+30"]

{[%evp 12,52,27,4,12,0,12,9,14,28,24,16,33,18,16,0,0,0,0,0,2,0,0,0,0,0,0,-2,0,0,0,0,0,0,0,0,0,0,0,-18,0,0,0]} 1. d4 {[%emt 0:00:33]} Nf6 {[%emt 0:06:24]} 2. c4 {[%emt 0:00:11]} g6 {[%emt 0:00:34]} 3. g3 {[%emt 0:00:11]} Bg7 {[%emt 0:00:07]} 4. Bg2 {[%emt 0:00:06]} O-O {[%emt 0:00:09]} 5. Nc3 {[%emt 0:00:04]} d6 {[%emt 0:00:07]} 6. Nf3 {[%emt 0:00:07]} c5 {[%emt 0:00:05]} 7. h3 {[%emt 0:01:04]} Nc6 {[%emt 0:07:24] E64: King's Indian: Fianchetto: 6...c5 7 d5.} 8. Be3 {[%emt 0:01:02]} cxd4 {[%emt 0:11:21]} 9. Nxd4 {[%emt 0:00:15]} Bd7 {[%emt 0:12:18] [#]} 10. b3 $146 {[%emt 0:03:47]} ({Predecessor:} 10. O-O Nxd4 11. Bxd4 Qc8 12. Bxf6 Bxf6 13. Nd5 Bxh3 14. Nxf6+ exf6 15. Bxh3 Qxh3 16. Qxd6 Rfe8 17. e3 Re5 {0-1 Therrien,A (2205)-Rustemov,A (2525) Titled Tuesday intern op 06th Dec Late blitz 2022 (2)}) 10... Qa5 {[%emt 0:01:13]} 11. Qd2 {[%emt 0:00:20]} Rfc8 {[%emt 0:00:31]} 12. Rd1 {[%emt 0:03:41]} a6 {[%emt 0:03:57] The position is equal.} 13. Nxc6 {[%emt 0:08:52]} Bxc6 {[%emt 0:03:39]} 14. Bxc6 {[%emt 0:02:44]} Rxc6 {[%emt 0:01:08]} 15. Nd5 {[%emt 0:00:43]} Qxd2+ {[%emt 0:03:02]} 16. Kxd2 {[%emt 0:00:19]} Kf8 {[%emt 0:02:56]} 17. Nxf6 {[%emt 0:08:52]} Bxf6 {[%emt 0:00:06]} 18. Rc1 {[%emt 0:03:15]} Rd8 {[%emt 0:05:27]} 19. Rc2 {[%emt 0:00:38]} Ke8 {[%emt 0:01:41]} 20. Rhc1 {[%emt 0:01:09]} d5 {[%emt 0:03:24]} 21. cxd5 {[%emt 0:00:15]} Rxd5+ {[%emt 0:00:09]} 22. Ke1 {[%emt 0:00:07]} Rxc2 {[%emt 0:00:13]} 23. Rxc2 {[%emt 0:00:05]} Kd7 {[%emt 0:02:09]} 24. Bf4 {[%emt 0:02:10]} e5 {[%emt 0:02:53]} 25. Rd2 {[%emt 0:00:19]} Ke6 {[%emt 0:01:14]} (25... Rd6 $5 {[%cal Re5f4]} 26. Be3 e4 27. Rxd6+ Kxd6 $11) 26. e4 {[%emt 0:01:08]} Rxd2 {[%emt 0:01:37] A rather calm draw.   Weighted Error Value: White=0.05 (flawless) /Black=0.04 (flawless)} 1/2-1/2

[Event "SixDays Budapest March GM-B 2023"]
[Site "Budapest"]
[Date "2023.03.28"]
[Round "7.1"]
[White "Moksh Amit Doshi"]
[Black "Vantika Agrawal"]
[Result "1-0"]
[ECO "A48"]
[WhiteElo "2388"]
[BlackElo "2367"]
[Annotator "TA"]
[PlyCount "133"]
[EventDate "2023.03.24"]
[EventType "tourn"]
[EventCountry "HUN"]
[SourceTitle "playchess.com"]
[Source "ChessBase"]
[SourceQuality "1"]
[TimeControl "5400+30"]

{[%evp 9,133,17,17,18,18,25,19,22,11,0,0,0,0,0,0,-6,15,15,7,-6,0,0,19,-14,-8,-28,-10,-13,0,0,31,28,30,-5,5,0,89,52,39,32,54,0,0,0,0,0,0,-12,0,-89,-25,-58,-24,-104,0,0,6,6,6,8,69,84,85,63,90,97,171,143,250,253,345,345,339,332,343,329,590,548,573,512,495,299,296,260,358,338,395,395,881,881,865,715,835,739,785,545,539,504,595,542,539,525,434,454,1039,992,1149,1458,1411,1359,975,1255,1423,1174,1154,1026,1593,1480,1345,1484,1571,1261,6087,1173,1132,990]} 1. Nf3 {[%emt 0:09:51]} Nf6 {[%emt 0:01:14]} 2. d4 {[%emt 0:00:17]} g6 {[%emt 0:00:10]} 3. Nbd2 {[%emt 0:00:07]} d5 {[%emt 0:00:07]} 4. e3 {[%emt 0:00:18]} Bg7 {[%emt 0:00:07]} 5. b4 {[%emt 0:00:07]} a5 {[%emt 0:00:28]} 6. b5 {[%emt 0:00:23] D02: 1 d4 d5 2 Nf3 sidelines, including 2...Nf6 3 g3 and 2...Nf6 3 Bf4.} c5 {[%emt 0:00:06]} 7. bxc6 {[%emt 0:02:34]} Nxc6 {[%emt 0:01:17] The main line 7...Nxc6 scores better than 7...bxc6.} 8. Be2 {[%emt 0:00:14] The position is equal.} O-O {[%emt 0:00:27]} 9. a4 {[%emt 0:00:07]} Bf5 {[%emt 0:03:52]} 10. c3 {[%emt 0:00:21] Inhibits Nb4.} Qc7 {[%emt 0:08:28][%cal Oc6b4]} 11. O-O {[%emt 0:01:18]} e5 {[%emt 0:11:05]} 12. Ba3 {[%emt 0:00:22]} Rfd8 {[%emt 0:06:49]} 13. h3 {[%emt 0:03:50]} exd4 {[%emt 0:10:13] [#]} 14. exd4 $146 {[%emt 0:01:36]} ({Predecessor:} 14. cxd4 Bf8 15. Bxf8 Kxf8 16. Rc1 Qd6 17. g4 Bd7 18. Qb3 h5 19. Nh2 Re8 20. Rfe1 {½-½ Indjic,A (2629)-Cabarkapa,N (2474) SRB-chT Premier 2021 (4.1)}) 14... Ne4 {[%emt 0:06:03]} 15. Qb3 {[%emt 0:01:57]} Bh6 {[%emt 0:01:58]} 16. Nxe4 {[%emt 0:08:13]} (16. Bc1 $5 {[%cal Rd2e4]}) 16... dxe4 {[%emt 0:01:30]} 17. Nh2 {[%emt 0:00:48]} Be6 {[%emt 0:05:18]} 18. Qb1 {[%emt 0:04:04]} Bd2 {[%emt 0:13:02]} 19. Qb2 {[%emt 0:04:01]} Bf4 {[%emt 0:18:39]} 20. Ng4 {[%emt 0:02:22]} Bxg4 {[%emt 0:03:30]} 21. Bxg4 {[%emt 0:00:10]} h5 {[%emt 0:00:29]} 22. Be2 {[%emt 0:01:23]} Bh2+ {[%emt 0:01:38]} (22... Ne7 $1 $11) 23. Kh1 $14 {[%emt 0:00:08] aiming for g3.} Bd6 {[%emt 0:00:21]} 24. Rfb1 {[%emt 0:07:52]} Rd7 {[%emt 0:01:10]} 25. Qb6 {[%emt 0:03:52]} (25. Bxd6 $14 Qxd6 26. Qd2) 25... Bxa3 $11 {[%emt 0:00:42]} 26. Rxa3 {[%emt 0:00:27]} Ne7 {[%emt 0:01:52]} 27. Qxc7 {[%emt 0:09:50]} Rxc7 {[%emt 0:00:03]} 28. f3 {[%emt 0:00:06]} e3 {[%emt 0:00:50]} 29. g3 {[%emt 0:18:59] [#]} (29. Kh2 $11) 29... h4 $1 {[%emt 0:00:40]} 30. Kg2 {[%emt 0:00:41]} (30. gxh4 Nf5) 30... Rac8 {[%emt 0:01:33]} (30... hxg3 $5 {[%cal Re7d5]} 31. Bd3 Re8 $15) 31. Rbb3 {[%emt 0:00:33]} (31. c4 $11 {remains equal.}) 31... Nf5 {[%emt 0:00:47]} ({Black should try} 31... hxg3 $17 {And now ...Nd5 would win.} 32. Kxg3 Kg7) 32. g4 {[%emt 0:00:37]} Ne7 {[%emt 0:01:29]} 33. c4 {[%emt 0:04:39] Repels Nd5} Nc6 $132 {[%emt 0:00:04][%mdl 2048] Black is fighting back} 34. Rd3 {[%emt 0:00:04]} ({Of course not} 34. Rxe3 Nxd4 35. Bd3 Ne6 $17) 34... Rd8 {[%emt 0:00:35]} (34... f5 $11) 35. d5 $14 {[%emt 0:00:22] Black is on the road to losing.} Nb4 {[%emt 0:00:06][%csl LRc4,LRd3]} 36. Rd1 $1 {[%emt 0:00:44]} ({But not} 36. Rxe3 $6 Nc2 $11) 36... Re7 {[%emt 0:01:09]} 37. f4 {[%emt 0:00:40]} g5 {[%emt 0:00:35]} 38. fxg5 {[%emt 0:01:21]} Kg7 {[%emt 0:00:30] [#]} (38... Rde8 $16 {is a better defense.} 39. Rc3 Re5) 39. Kf3 $1 $18 {[%emt 0:00:22]} Kg6 {[%emt 0:00:29]} 40. Rxe3 {[%emt 0:00:32]} Rxe3+ {[%emt 0:00:06]} 41. Kxe3 {[%emt 0:00:05][%mdl 4096] Endgame KRB-KRN} Re8+ {[%emt 0:00:08]} 42. Kf3 {[%emt 0:02:13]} b6 $2 {[%emt 0:00:38]} (42... Kxg5 {might work better.} 43. d6 f5 44. gxf5 Nc6) 43. Bd3+ {[%emt 0:01:04]} Kxg5 {[%emt 0:00:25]} 44. Bf5 {[%emt 0:02:03]} Na6 {[%emt 0:01:12]} 45. Bd7 {[%emt 0:01:22]} Rd8 {[%emt 0:00:21]} 46. Bc6 {[%emt 0:00:33]} Nb4 {[%emt 0:00:40]} 47. Bb5 {[%emt 0:00:32]} Rd6 {[%emt 0:00:27]} 48. Ke4 {[%emt 0:00:24]} Kf6 $2 {[%emt 0:00:12] [#]} (48... f6 49. Rd2 Kg6) 49. g5+ $1 {[%emt 0:00:57][%mdl 512] White is clearly winning.} Ke7 {[%emt 0:00:38]} 50. Kf5 {[%emt 0:00:05]} Rg6 {[%emt 0:00:45]} 51. Re1+ {[%emt 0:00:49]} Kd6 {[%emt 0:00:10]} 52. Re8 {[%emt 0:00:25]} Nc2 {[%emt 0:00:48]} 53. Rd8+ {[%emt 0:00:06]} Kc5 {[%emt 0:00:16]} 54. Rc8+ {[%emt 0:02:16]} Kd4 {[%emt 0:00:39]} 55. Rc6 {[%emt 0:00:18]} Ne3+ {[%emt 0:00:21]} 56. Kf4 {[%emt 0:00:04] Strongly threatening Rxg6.} Rg8 {[%emt 0:00:47]} (56... Ng2+ $142 57. Kg4 Ne3+ 58. Kxh4 Rg8 59. Rxb6 Ke5) 57. Rc7 {[%emt 0:00:29]} Ng2+ {[%emt 0:00:30]} 58. Kf5 {[%emt 0:00:41]} Ne3+ {[%emt 0:00:17] [#]} 59. Kf6 $1 {[%emt 0:00:04]} Rg6+ {[%emt 0:00:13]} 60. Kxf7 {[%emt 0:00:05]} Rxg5 {[%emt 0:00:03]} 61. d6 {[%emt 0:00:26] White wants to mate with d7.} Rf5+ {[%emt 0:01:20]} 62. Kg6 {[%emt 0:00:06] Hoping for d7.} Ke5 {[%emt 0:00:37]} 63. Re7+ {[%emt 0:00:22]} Kxd6 {[%emt 0:00:31]} 64. Rxe3 {[%emt 0:00:06]} Rf4 {[%emt 0:00:27]} 65. Kg5 {[%emt 0:00:10]} Rd4 {[%emt 0:00:15]} 66. Rf3 {[%emt 0:00:04][%cal Of3d3]} Ke5 {[%emt 0:00:47]} 67. Rf5+ {[%emt 0:00:06] Weighted Error Value: White=0.22 (precise) /Black=0.34} 1-0